[Event "Titled Tuesday Blitz March 07 Late 2023"]
[White "Slade, Theodore"]
[Black "Skvortsov, Andrei"]
[WhiteFideId "426547"]
[BlackFideId "24108600"]
[WhiteElo "1964"]
[BlackElo "2259"]
[Result "0-1"]
[Round "09"]
[TimeControl "180+2"]
[Date "2023.03.07"]
[WhiteClock "0:00:03"]
[BlackClock "0:00:17"]

1. d4 {[%clk 0:03:00]}  d5 {[%clk 0:02:54]} 2. c4 {[%clk 0:03:01]}  dxc4 {[%clk 0:02:53]} 3. Nf3 {[%clk 0:03:01]}  Nf6 {[%clk 0:02:54]} 4. e3 {[%clk 0:03:02]}  e6 {[%clk 0:02:54]} 5. Bxc4 {[%clk 0:03:02]}  a6 {[%clk 0:02:55]} 6. O-O {[%clk 0:03:03]}  c5 {[%clk 0:02:55]} 7. dxc5 {[%clk 0:03:03]}  Bxc5 {[%clk 0:02:56]} 8. Qxd8+ {[%clk 0:03:03]}  Kxd8 {[%clk 0:02:57]} 9. Nfd2 {[%clk 0:03:02]}  Ke7 {[%clk 0:02:54]} 10. Be2 {[%clk 0:03:02]}  Rd8 {[%clk 0:02:52]} 11. Bf3 {[%clk 0:03:00]}  Nbd7 {[%clk 0:02:51]} 12. Nc4 {[%clk 0:02:52]}  Rb8 {[%clk 0:02:50]} 13. Nc3 {[%clk 0:02:48]}  b5 {[%clk 0:02:41]} 14. Na5 {[%clk 0:02:47]}  Ne5 {[%clk 0:02:41]} 15. Be2 {[%clk 0:01:43]}  Bb6 {[%clk 0:02:38]} 16. b4 {[%clk 0:01:36]}  Bxa5 {[%clk 0:02:22]} 17. bxa5 {[%clk 0:01:36]}  Nd3 {[%clk 0:02:22]} 18. Rd1 {[%clk 0:01:22]}  Nxc1 {[%clk 0:02:21]} 19. Raxc1 {[%clk 0:01:22]}  Bb7 {[%clk 0:02:18]} 20. f3 {[%clk 0:01:16]}  b4 {[%clk 0:01:56]} 21. Na4 {[%clk 0:01:13]}  Rxd1+ {[%clk 0:01:54]} 22. Bxd1 {[%clk 0:01:11]}  Bd5 {[%clk 0:01:48]} 23. Bb3 {[%clk 0:01:04]}  Rb5 {[%clk 0:01:45]} 24. Rc5 {[%clk 0:00:59]}  Rb7 {[%clk 0:01:32]} 25. e4 {[%clk 0:00:55]}  Bxb3 {[%clk 0:01:29]} 26. axb3 {[%clk 0:00:56]}  Nd7 {[%clk 0:01:21]} 27. Rc6 {[%clk 0:00:50]}  Nb8 {[%clk 0:01:21]} 28. Nc5 {[%clk 0:00:44]}  Rb5 {[%clk 0:00:30]} 29. Rc8 {[%clk 0:00:16]}  Rxa5 {[%clk 0:00:23]} 30. Rxb8 {[%clk 0:00:16]}  Rxc5 {[%clk 0:00:22]} 31. Rxb4 {[%clk 0:00:16]}  Rb5 {[%clk 0:00:23]} 32. Ra4 {[%clk 0:00:15]}  a5 {[%clk 0:00:22]} 33. Kf2 {[%clk 0:00:16]}  Kd6 {[%clk 0:00:22]} 34. g4 {[%clk 0:00:12]}  Kc5 {[%clk 0:00:22]} 35. Ra3 {[%clk 0:00:10]}  Kb4 {[%clk 0:00:22]} 36. Ra1 {[%clk 0:00:08]}  Kxb3 {[%clk 0:00:22]} 37. Rb1+ {[%clk 0:00:08]}  Ka4 {[%clk 0:00:21]} 38. Rc1 {[%clk 0:00:04]}  Rb7 {[%clk 0:00:21]} 39. Ra1+ {[%clk 0:00:04]}  Kb5 {[%clk 0:00:21]} 40. Rb1+ {[%clk 0:00:04]}  Ka6 {[%clk 0:00:21]} 41. Ra1 {[%clk 0:00:04]}  Ra7 {[%clk 0:00:22]} 42. Ke3 {[%clk 0:00:04]}  e5 {[%clk 0:00:21]} 43. Kd3 {[%clk 0:00:04]}  Kb5 {[%clk 0:00:21]} 44. Rb1+ {[%clk 0:00:04]}  Kc5 {[%clk 0:00:20]} 45. Rc1+ {[%clk 0:00:04]}  Kd6 {[%clk 0:00:20]} 46. Ra1 {[%clk 0:00:03]}  a4 {[%clk 0:00:21]} 47. Ra3 {[%clk 0:00:04]}  Kc5 {[%clk 0:00:21]} 48. Kc3 {[%clk 0:00:04]}  Kb5 {[%clk 0:00:21]} 49. Kb2 {[%clk 0:00:04]}  Rd7 {[%clk 0:00:21]} 50. Rc3 {[%clk 0:00:03]}  Rd2+ {[%clk 0:00:21]} 51. Ka3 {[%clk 0:00:03]}  Rf2 {[%clk 0:00:20]} 52. Rd3 {[%clk 0:00:03]}  f6 {[%clk 0:00:20]} 53. h4 {[%clk 0:00:03]}  Rc2 {[%clk 0:00:19]} 54. h5 {[%clk 0:00:03]}  h6 {[%clk 0:00:17]} 55. Rd5+ {[%clk 0:00:03]}  Rc5 {[%clk 0:00:16]} 56. Rd7 {[%clk 0:00:02]}  Rc3+ {[%clk 0:00:16]} 57. Kb2 {[%clk 0:00:03]}  Rb3+ {[%clk 0:00:16]} 58. Ka2 {[%clk 0:00:03]}  Rxf3 {[%clk 0:00:16]} 59. Rxg7 {[%clk 0:00:04]}  Rf2+ {[%clk 0:00:16]} 60. Ka3 {[%clk 0:00:04]}  Rf3+ {[%clk 0:00:16]} 61. Ka2 {[%clk 0:00:03]}  Rf4 {[%clk 0:00:17]} 62. Rg6 {[%clk 0:00:04]}  Kb4 {[%clk 0:00:16]} 63. Rxh6 {[%clk 0:00:04]}  Rf2+ {[%clk 0:00:16]} 64. Ka1 {[%clk 0:00:04]}  Kb3 {[%clk 0:00:17]} 65. Kb1 {[%clk 0:00:03]}  Rf1# {[%clk 0:00:17]} 0-1


[Site "https://www.chess.com"]

[Event "Titled Tuesday Blitz March 07 Late 2023"]
[White "Cuenca Jimenez, Jose Fernando"]
[Black "Gasparyan, David"]
[WhiteFideId "2255570"]
[BlackFideId "13311980"]
[WhiteElo "2429"]
[BlackElo "2467"]
[Result "1-0"]
[Round "09"]
[TimeControl "180+2"]
[Date "2023.03.07"]
[WhiteClock "0:00:07"]
[BlackClock "0:00:11"]

1. c4 {[%clk 0:03:00]}  d6 {[%clk 0:02:59]} 2. Nc3 {[%clk 0:02:57]}  g6 {[%clk 0:02:58]} 3. g3 {[%clk 0:02:55]}  Bg7 {[%clk 0:02:58]} 4. Bg2 {[%clk 0:02:55]}  Nf6 {[%clk 0:02:58]} 5. e4 {[%clk 0:02:54]}  O-O {[%clk 0:02:58]} 6. Nge2 {[%clk 0:02:55]}  c5 {[%clk 0:02:49]} 7. O-O {[%clk 0:02:54]}  Nc6 {[%clk 0:02:49]} 8. d3 {[%clk 0:02:54]}  a6 {[%clk 0:02:48]} 9. a3 {[%clk 0:02:51]}  Rb8 {[%clk 0:02:47]} 10. Rb1 {[%clk 0:02:51]}  b5 {[%clk 0:02:43]} 11. cxb5 {[%clk 0:02:51]}  axb5 {[%clk 0:02:44]} 12. b4 {[%clk 0:02:51]}  Bd7 {[%clk 0:02:35]} 13. bxc5 {[%clk 0:02:35]}  dxc5 {[%clk 0:02:34]} 14. Nxb5 {[%clk 0:02:29]}  e5 {[%clk 0:02:21]} 15. a4 {[%clk 0:02:14]}  Nb4 {[%clk 0:02:17]} 16. Nec3 {[%clk 0:01:58]}  Bg4 {[%clk 0:02:01]} 17. f3 {[%clk 0:01:53]}  Be6 {[%clk 0:02:01]} 18. Ba3 {[%clk 0:01:40]}  Nxd3 {[%clk 0:01:56]} 19. Qd2 {[%clk 0:01:33]}  Qb6 {[%clk 0:01:42]} 20. a5 {[%clk 0:01:16]}  Qd8 {[%clk 0:01:41]} 21. Rfd1 {[%clk 0:01:13]}  Bc4 {[%clk 0:01:39]} 22. Bf1 {[%clk 0:01:06]}  Bxb5 {[%clk 0:01:17]} 23. Nxb5 {[%clk 0:01:05]}  c4 {[%clk 0:01:01]} 24. Bxf8 {[%clk 0:00:59]}  Bxf8 {[%clk 0:01:02]} 25. Bxd3 {[%clk 0:00:59]}  cxd3 {[%clk 0:01:02]} 26. Qxd3 {[%clk 0:00:59]}  Qxa5 {[%clk 0:01:02]} 27. Nc3 {[%clk 0:00:56]}  Bc5+ {[%clk 0:01:00]} 28. Kg2 {[%clk 0:00:54]}  Rxb1 {[%clk 0:00:59]} 29. Rxb1 {[%clk 0:00:54]}  Bd4 {[%clk 0:00:57]} 30. Ne2 {[%clk 0:00:50]}  Ba7 {[%clk 0:00:50]} 31. Rb2 {[%clk 0:00:48]}  Qe1 {[%clk 0:00:47]} 32. Rb1 {[%clk 0:00:34]}  Qf2+ {[%clk 0:00:46]} 33. Kh1 {[%clk 0:00:34]}  h5 {[%clk 0:00:43]} 34. Ng1 {[%clk 0:00:30]}  h4 {[%clk 0:00:42]} 35. Rf1 {[%clk 0:00:20]}  Qc5 {[%clk 0:00:28]} 36. Kg2 {[%clk 0:00:14]}  Nh5 {[%clk 0:00:27]} 37. Qe2 {[%clk 0:00:12]}  hxg3 {[%clk 0:00:27]} 38. hxg3 {[%clk 0:00:12]}  Qe7 {[%clk 0:00:28]} 39. Nh3 {[%clk 0:00:12]}  Bd4 {[%clk 0:00:25]} 40. Rb1 {[%clk 0:00:12]}  Kg7 {[%clk 0:00:25]} 41. Qd2 {[%clk 0:00:11]}  Qa3 {[%clk 0:00:24]} 42. Rd1 {[%clk 0:00:10]}  Qb3 {[%clk 0:00:19]} 43. Qe2 {[%clk 0:00:10]}  Qb4 {[%clk 0:00:18]} 44. g4 {[%clk 0:00:10]}  Nf6 {[%clk 0:00:17]} 45. Qd2 {[%clk 0:00:10]}  Qc4 {[%clk 0:00:17]} 46. Qd3 {[%clk 0:00:09]}  Qa2+ {[%clk 0:00:17]} 47. Rd2 {[%clk 0:00:09]}  Qa1 {[%clk 0:00:18]} 48. Qe2 {[%clk 0:00:08]}  Qa5 {[%clk 0:00:18]} 49. Rd1 {[%clk 0:00:08]}  Ne8 {[%clk 0:00:17]} 50. Nf2 {[%clk 0:00:08]}  Nf6 {[%clk 0:00:14]} 51. Nd3 {[%clk 0:00:08]}  Nh7 {[%clk 0:00:12]} 52. Qd2 {[%clk 0:00:07]}  Qd8 {[%clk 0:00:11]} 53. Nxe5 {[%clk 0:00:07]} 1-0


[Site "https://www.chess.com"]

[Event "Titled Tuesday Blitz March 07 Late 2023"]
[White "Sreyas Payyappat"]
[Black "Rytenko, Vsevolod"]
[WhiteFideId "46674969"]
[BlackFideId "14133040"]
[WhiteElo "2083"]
[BlackElo "2262"]
[Result "0-1"]
[Round "09"]
[TimeControl "180+2"]
[Date "2023.03.07"]
[WhiteClock "0:00:11"]
[BlackClock "0:00:25"]

1. e4 {[%clk 0:02:56]}  c5 {[%clk 0:02:59]} 2. Nf3 {[%clk 0:02:56]}  d6 {[%clk 0:02:58]} 3. d4 {[%clk 0:02:57]}  cxd4 {[%clk 0:02:59]} 4. Nxd4 {[%clk 0:02:58]}  Nf6 {[%clk 0:02:59]} 5. Nc3 {[%clk 0:02:58]}  g6 {[%clk 0:03:00]} 6. f4 {[%clk 0:02:56]}  Nc6 {[%clk 0:02:59]} 7. Be3 {[%clk 0:02:54]}  Bg7 {[%clk 0:02:52]} 8. Be2 {[%clk 0:02:54]}  O-O {[%clk 0:02:50]} 9. Qd3 {[%clk 0:02:54]}  Bd7 {[%clk 0:02:41]} 10. O-O {[%clk 0:02:51]}  Rc8 {[%clk 0:02:39]} 11. h3 {[%clk 0:02:49]}  Nb4 {[%clk 0:02:31]} 12. Qd2 {[%clk 0:02:48]}  a5 {[%clk 0:02:30]} 13. Bf3 {[%clk 0:02:47]}  Ne8 {[%clk 0:02:07]} 14. Rad1 {[%clk 0:02:42]}  Nc7 {[%clk 0:02:03]} 15. g4 {[%clk 0:02:18]}  Ne6 {[%clk 0:02:02]} 16. Nxe6 {[%clk 0:02:09]}  Bxe6 {[%clk 0:01:25]} 17. a3 {[%clk 0:02:08]}  Nc6 {[%clk 0:01:06]} 18. f5 {[%clk 0:01:45]}  Bc4 {[%clk 0:01:05]} 19. Be2 {[%clk 0:01:36]}  Bxc3 {[%clk 0:01:03]} 20. bxc3 {[%clk 0:01:35]}  Ne5 {[%clk 0:01:04]} 21. Bd4 {[%clk 0:01:31]}  Qc7 {[%clk 0:00:56]} 22. Bxc4 {[%clk 0:01:23]}  Qxc4 {[%clk 0:00:54]} 23. f6 {[%clk 0:01:19]}  exf6 {[%clk 0:00:51]} 24. Rxf6 {[%clk 0:01:18]}  Nc6 {[%clk 0:00:51]} 25. Rxd6 {[%clk 0:00:51]}  Rfd8 {[%clk 0:00:48]} 26. Rxd8+ {[%clk 0:00:28]}  Rxd8 {[%clk 0:00:49]} 27. Qg5 {[%clk 0:00:27]}  Re8 {[%clk 0:00:34]} 28. Qf6 {[%clk 0:00:18]}  Nxd4 {[%clk 0:00:34]} 29. Qxd4 {[%clk 0:00:19]}  Qe2 {[%clk 0:00:33]} 30. Qd3 {[%clk 0:00:17]}  Rxe4 {[%clk 0:00:30]} 31. Qxe2 {[%clk 0:00:16]}  Rxe2 {[%clk 0:00:31]} 32. Rd5 {[%clk 0:00:11]}  b6 {[%clk 0:00:25]} 33. Rb5 {[%clk 0:00:08]}  Rxc2 {[%clk 0:00:25]} 34. Rxb6 {[%clk 0:00:07]}  Rxc3 {[%clk 0:00:25]} 35. a4 {[%clk 0:00:07]}  Rxh3 {[%clk 0:00:25]} 36. Rb5 {[%clk 0:00:07]}  Rg3+ {[%clk 0:00:25]} 37. Kf2 {[%clk 0:00:07]}  Rxg4 {[%clk 0:00:26]} 38. Rxa5 {[%clk 0:00:08]}  h5 {[%clk 0:00:26]} 39. Ra8+ {[%clk 0:00:08]}  Kg7 {[%clk 0:00:26]} 40. a5 {[%clk 0:00:09]}  Ra4 {[%clk 0:00:26]} 41. a6 {[%clk 0:00:10]}  g5 {[%clk 0:00:27]} 42. a7 {[%clk 0:00:11]}  h4 {[%clk 0:00:26]} 43. Kg2 {[%clk 0:00:11]}  g4 {[%clk 0:00:25]} 44. Kf2 {[%clk 0:00:11]}  Ra2+ {[%clk 0:00:25]} 45. Ke3 {[%clk 0:00:11]}  h3 {[%clk 0:00:25]} 46. Kf4 {[%clk 0:00:11]}  h2 {[%clk 0:00:25]} 47. Kxg4 {[%clk 0:00:11]}  h1=Q {[%clk 0:00:25]} 0-1


[Site "https://www.chess.com"]

[Event "Titled Tuesday Blitz March 07 Late 2023"]
[White "Guzman, Christopher"]
[Black "Gerbelli Neto, Eduardo"]
[WhiteFideId "6405096"]
[BlackFideId "2103281"]
[WhiteElo "2281"]
[BlackElo "2178"]
[Result "1-0"]
[Round "09"]
[TimeControl "180+2"]
[Date "2023.03.07"]
[WhiteClock "0:00:56"]
[BlackClock "0:00:13"]

1. e4 {[%clk 0:02:47]}  e5 {[%clk 0:02:57]} 2. Nf3 {[%clk 0:02:46]}  Nc6 {[%clk 0:02:57]} 3. Bb5 {[%clk 0:02:45]}  a6 {[%clk 0:02:57]} 4. Ba4 {[%clk 0:02:45]}  d6 {[%clk 0:02:54]} 5. O-O {[%clk 0:02:45]}  Bg4 {[%clk 0:02:54]} 6. c3 {[%clk 0:02:45]}  Qf6 {[%clk 0:02:50]} 7. Bxc6+ {[%clk 0:02:41]}  bxc6 {[%clk 0:02:49]} 8. d3 {[%clk 0:02:42]}  Ne7 {[%clk 0:02:45]} 9. Be3 {[%clk 0:02:36]}  Bxf3 {[%clk 0:02:27]} 10. Qxf3 {[%clk 0:02:35]}  Qxf3 {[%clk 0:02:26]} 11. gxf3 {[%clk 0:02:36]}  g5 {[%clk 0:02:27]} 12. d4 {[%clk 0:02:27]}  f6 {[%clk 0:02:04]} 13. dxe5 {[%clk 0:02:20]}  fxe5 {[%clk 0:02:05]} 14. Kh1 {[%clk 0:02:20]}  Rg8 {[%clk 0:02:05]} 15. Rg1 {[%clk 0:02:19]}  h6 {[%clk 0:02:03]} 16. Nd2 {[%clk 0:02:19]}  Kf7 {[%clk 0:01:52]} 17. Nc4 {[%clk 0:02:16]}  Rb8 {[%clk 0:01:48]} 18. b3 {[%clk 0:02:15]}  Ng6 {[%clk 0:01:36]} 19. Na5 {[%clk 0:02:03]}  c5 {[%clk 0:01:35]} 20. Rad1 {[%clk 0:02:02]}  Ke6 {[%clk 0:01:29]} 21. Rg3 {[%clk 0:02:01]}  Nf4 {[%clk 0:01:10]} 22. Bxf4 {[%clk 0:01:53]}  exf4 {[%clk 0:01:11]} 23. Rgg1 {[%clk 0:01:53]}  Bg7 {[%clk 0:01:11]} 24. Rd3 {[%clk 0:01:51]}  Bf6 {[%clk 0:01:05]} 25. h3 {[%clk 0:01:50]}  h5 {[%clk 0:01:04]} 26. Nc4 {[%clk 0:01:43]}  Rh8 {[%clk 0:00:31]} 27. Kg2 {[%clk 0:01:43]}  Be5 {[%clk 0:00:27]} 28. Kf1 {[%clk 0:01:42]}  g4 {[%clk 0:00:27]} 29. hxg4 {[%clk 0:01:38]}  hxg4 {[%clk 0:00:27]} 30. Rxg4 {[%clk 0:01:38]}  Rh1+ {[%clk 0:00:28]} 31. Rg1 {[%clk 0:01:31]}  Rbh8 {[%clk 0:00:28]} 32. Nxe5 {[%clk 0:01:30]}  Kxe5 {[%clk 0:00:27]} 33. Rd5+ {[%clk 0:01:29]}  Ke6 {[%clk 0:00:27]} 34. Rf5 {[%clk 0:01:28]}  R1h4 {[%clk 0:00:19]} 35. Ke2 {[%clk 0:01:25]}  Kd7 {[%clk 0:00:18]} 36. Rg7+ {[%clk 0:01:24]}  Kc6 {[%clk 0:00:18]} 37. Rff7 {[%clk 0:01:23]}  Rc8 {[%clk 0:00:19]} 38. Rg4 {[%clk 0:01:23]}  Rh1 {[%clk 0:00:15]} 39. Rgxf4 {[%clk 0:01:11]}  Ra1 {[%clk 0:00:15]} 40. a4 {[%clk 0:01:09]}  Rb1 {[%clk 0:00:15]} 41. b4 {[%clk 0:01:05]}  cxb4 {[%clk 0:00:16]} 42. cxb4 {[%clk 0:01:05]}  Rxb4 {[%clk 0:00:17]} 43. Rh4 {[%clk 0:01:02]}  Rxa4 {[%clk 0:00:17]} 44. Rh5 {[%clk 0:01:02]}  Ra2+ {[%clk 0:00:17]} 45. Ke3 {[%clk 0:01:02]}  a5 {[%clk 0:00:18]} 46. Rff5 {[%clk 0:01:01]}  Ra8 {[%clk 0:00:18]} 47. Rh1 {[%clk 0:00:59]}  a4 {[%clk 0:00:18]} 48. Rc1+ {[%clk 0:00:59]}  Kd7 {[%clk 0:00:17]} 49. Rf7+ {[%clk 0:00:59]}  Ke6 {[%clk 0:00:17]} 50. Rcxc7 {[%clk 0:00:59]}  Re8 {[%clk 0:00:16]} 51. f4 {[%clk 0:00:56]}  Ra3+ {[%clk 0:00:13]} 52. Kd4 {[%clk 0:00:56]} 1-0


[Site "https://www.chess.com"]

[Event "Titled Tuesday Blitz March 07 Late 2023"]
[White "ArchibaldCerveza29"]
[Black "Baskakov, Egor"]
[BlackFideId "24197866"]
[WhiteElo "2486"]
[BlackElo "2212"]
[Result "0-1"]
[Round "09"]
[TimeControl "180+2"]
[Date "2023.03.07"]
[WhiteClock "0:00:05"]
[BlackClock "0:00:25"]

1. e4 {[%clk 0:03:00]}  c5 {[%clk 0:02:59]} 2. Nf3 {[%clk 0:02:59]}  Nf6 {[%clk 0:02:57]} 3. e5 {[%clk 0:02:54]}  Nd5 {[%clk 0:02:58]} 4. Nc3 {[%clk 0:02:44]}  e6 {[%clk 0:02:58]} 5. Ne4 {[%clk 0:02:44]}  Nc6 {[%clk 0:02:57]} 6. c3 {[%clk 0:02:36]}  f5 {[%clk 0:02:56]} 7. exf6 {[%clk 0:02:20]}  Nxf6 {[%clk 0:02:56]} 8. Nxf6+ {[%clk 0:02:20]}  Qxf6 {[%clk 0:02:56]} 9. d4 {[%clk 0:02:21]}  d5 {[%clk 0:02:53]} 10. Bg5 {[%clk 0:02:18]}  Qf7 {[%clk 0:02:53]} 11. Bd3 {[%clk 0:02:15]}  Bd6 {[%clk 0:02:52]} 12. O-O {[%clk 0:02:15]}  O-O {[%clk 0:02:49]} 13. Qe2 {[%clk 0:02:12]}  Re8 {[%clk 0:02:40]} 14. Rae1 {[%clk 0:02:10]}  e5 {[%clk 0:02:38]} 15. dxe5 {[%clk 0:02:07]}  Nxe5 {[%clk 0:02:39]} 16. Nxe5 {[%clk 0:02:06]}  Rxe5 {[%clk 0:02:39]} 17. Qd2 {[%clk 0:02:01]}  Rxe1 {[%clk 0:02:29]} 18. Rxe1 {[%clk 0:02:02]}  Bf5 {[%clk 0:02:29]} 19. Bxf5 {[%clk 0:01:57]}  Qxf5 {[%clk 0:02:30]} 20. Be7 {[%clk 0:01:52]}  Bxe7 {[%clk 0:02:25]} 21. Rxe7 {[%clk 0:01:53]}  Rd8 {[%clk 0:02:24]} 22. h3 {[%clk 0:01:45]}  d4 {[%clk 0:02:22]} 23. cxd4 {[%clk 0:01:34]}  cxd4 {[%clk 0:02:23]} 24. Rxb7 {[%clk 0:01:30]}  d3 {[%clk 0:02:23]} 25. Rxa7 {[%clk 0:01:21]}  Qc5 {[%clk 0:02:14]} 26. Rb7 {[%clk 0:01:12]}  h6 {[%clk 0:02:09]} 27. b4 {[%clk 0:00:42]}  Qc2 {[%clk 0:02:05]} 28. Qf4 {[%clk 0:00:43]}  Rf8 {[%clk 0:01:50]} 29. Qd4 {[%clk 0:00:42]}  Rf6 {[%clk 0:01:36]} 30. Rd7 {[%clk 0:00:34]}  Qe2 {[%clk 0:01:05]} 31. Rd8+ {[%clk 0:00:33]}  Kf7 {[%clk 0:00:59]} 32. Qd5+ {[%clk 0:00:21]}  Re6 {[%clk 0:00:55]} 33. Qxd3 {[%clk 0:00:20]}  Qxa2 {[%clk 0:00:51]} 34. Rd7+ {[%clk 0:00:17]}  Ke8 {[%clk 0:00:40]} 35. Rxg7 {[%clk 0:00:15]}  Qa1+ {[%clk 0:00:40]} 36. Kh2 {[%clk 0:00:14]}  Qxg7 {[%clk 0:00:40]} 37. Qb5+ {[%clk 0:00:13]}  Qd7 {[%clk 0:00:40]} 38. Qh5+ {[%clk 0:00:13]}  Kd8 {[%clk 0:00:39]} 39. b5 {[%clk 0:00:12]}  Rf6 {[%clk 0:00:35]} 40. Qh4 {[%clk 0:00:12]}  Qd6+ {[%clk 0:00:34]} 41. g3 {[%clk 0:00:12]}  Kc7 {[%clk 0:00:30]} 42. Qc4+ {[%clk 0:00:12]}  Kb7 {[%clk 0:00:30]} 43. Qe4+ {[%clk 0:00:10]}  Kb6 {[%clk 0:00:28]} 44. Kg2 {[%clk 0:00:05]}  Qc5 {[%clk 0:00:21]} 45. Qe2 {[%clk 0:00:03]}  Qd5+ {[%clk 0:00:20]} 46. Kh2 {[%clk 0:00:04]}  Qc5 {[%clk 0:00:20]} 47. Kg2 {[%clk 0:00:03]}  Rd6 {[%clk 0:00:20]} 48. h4 {[%clk 0:00:03]}  h5 {[%clk 0:00:20]} 49. Qf3 {[%clk 0:00:03]}  Qd5 {[%clk 0:00:20]} 50. Qxd5 {[%clk 0:00:03]}  Rxd5 {[%clk 0:00:21]} 51. f3 {[%clk 0:00:03]}  Kxb5 {[%clk 0:00:21]} 52. g4 {[%clk 0:00:04]}  Kc5 {[%clk 0:00:21]} 53. Kg3 {[%clk 0:00:03]}  Kd6 {[%clk 0:00:22]} 54. g5 {[%clk 0:00:02]}  Ke6 {[%clk 0:00:22]} 55. Kf4 {[%clk 0:00:02]}  Rd4+ {[%clk 0:00:23]} 56. Kg3 {[%clk 0:00:03]}  Ra4 {[%clk 0:00:23]} 57. f4 {[%clk 0:00:02]}  Kf5 {[%clk 0:00:24]} 58. g6 {[%clk 0:00:02]}  Rxf4 {[%clk 0:00:23]} 59. g7 {[%clk 0:00:03]}  Rg4+ {[%clk 0:00:24]} 60. Kh3 {[%clk 0:00:04]}  Rxg7 {[%clk 0:00:25]} 61. Kh2 {[%clk 0:00:05]}  Kf4 {[%clk 0:00:25]} 62. Kh1 {[%clk 0:00:05]} 0-1


[Site "https://www.chess.com"]

[Event "Titled Tuesday Blitz March 07 Late 2023"]
[White "Fier, Alexandr"]
[Black "Prydun, Andriy"]
[WhiteFideId "2107139"]
[BlackFideId "14145898"]
[WhiteElo "2610"]
[BlackElo "2164"]
[Result "1-0"]
[Round "09"]
[TimeControl "180+2"]
[Date "2023.03.07"]
[WhiteClock "0:02:14"]
[BlackClock "0:00:28"]

1. d4 {[%clk 0:03:00]}  c6 {[%clk 0:02:57]} 2. Bg5 {[%clk 0:02:58]}  Na6 {[%clk 0:02:56]} 3. e4 {[%clk 0:02:53]}  d5 {[%clk 0:02:53]} 4. e5 {[%clk 0:02:51]}  Qb6 {[%clk 0:02:52]} 5. Nc3 {[%clk 0:02:49]}  Qxb2 {[%clk 0:02:49]} 6. Nge2 {[%clk 0:02:48]}  Nh6 {[%clk 0:02:45]} 7. Rb1 {[%clk 0:02:45]}  Qa3 {[%clk 0:02:45]} 8. Bd2 {[%clk 0:02:35]}  Nf5 {[%clk 0:02:43]} 9. g4 {[%clk 0:02:34]}  Nh4 {[%clk 0:02:41]} 10. Nf4 {[%clk 0:02:32]}  Ng6 {[%clk 0:02:33]} 11. Rb3 {[%clk 0:02:32]}  Qa5 {[%clk 0:02:29]} 12. Ncxd5 {[%clk 0:02:30]}  Qd8 {[%clk 0:02:29]} 13. Nxg6 {[%clk 0:02:29]}  hxg6 {[%clk 0:02:29]} 14. Nf4 {[%clk 0:02:26]}  Qxd4 {[%clk 0:02:24]} 15. Rd3 {[%clk 0:02:26]}  Qe4+ {[%clk 0:02:23]} 16. Be3 {[%clk 0:02:27]}  Bxg4 {[%clk 0:00:57]} 17. Qxg4 {[%clk 0:02:25]}  Nc5 {[%clk 0:00:58]} 18. Rd2 {[%clk 0:02:18]}  Qxh1 {[%clk 0:00:55]} 19. Bxc5 {[%clk 0:02:17]}  e6 {[%clk 0:00:55]} 20. Nxe6 {[%clk 0:02:16]}  Bxc5 {[%clk 0:00:41]} 21. Nc7+ {[%clk 0:02:16]}  Kf8 {[%clk 0:00:40]} 22. Nxa8 {[%clk 0:02:15]}  Be7 {[%clk 0:00:28]} 23. Qc8+ {[%clk 0:02:14]} 1-0


[Site "https://www.chess.com"]

[Event "Titled Tuesday Blitz March 07 Late 2023"]
[White "Weichhold, Pawel"]
[Black "Papayan, Oleg"]
[WhiteFideId "1139703"]
[BlackFideId "4193911"]
[WhiteElo "2330"]
[BlackElo "2153"]
[Result "0-1"]
[Round "09"]
[TimeControl "180+2"]
[Date "2023.03.07"]
[WhiteClock "0:00:27"]
[BlackClock "0:00:06"]

1. e4 {[%clk 0:03:00]}  d5 {[%clk 0:02:38]} 2. exd5 {[%clk 0:03:00]}  Qxd5 {[%clk 0:02:39]} 3. Nc3 {[%clk 0:02:59]}  Qd8 {[%clk 0:02:40]} 4. d4 {[%clk 0:02:58]}  c6 {[%clk 0:02:40]} 5. Nf3 {[%clk 0:02:57]}  Bf5 {[%clk 0:02:41]} 6. Bd3 {[%clk 0:02:52]}  Bg6 {[%clk 0:02:39]} 7. Bf4 {[%clk 0:02:36]}  e6 {[%clk 0:02:39]} 8. h4 {[%clk 0:02:29]}  Nf6 {[%clk 0:02:31]} 9. Qe2 {[%clk 0:02:19]}  Nbd7 {[%clk 0:02:30]} 10. O-O-O {[%clk 0:02:19]}  Bb4 {[%clk 0:02:30]} 11. Bxg6 {[%clk 0:01:54]}  hxg6 {[%clk 0:02:31]} 12. Ne4 {[%clk 0:01:53]}  Qa5 {[%clk 0:02:14]} 13. Kb1 {[%clk 0:00:59]}  Nxe4 {[%clk 0:01:54]} 14. Qxe4 {[%clk 0:01:00]}  Nf6 {[%clk 0:01:54]} 15. Qe2 {[%clk 0:00:53]}  Nd5 {[%clk 0:01:34]} 16. Bc1 {[%clk 0:00:48]}  O-O-O {[%clk 0:01:09]} 17. Ne5 {[%clk 0:00:47]}  Qc7 {[%clk 0:01:09]} 18. g3 {[%clk 0:00:42]}  Bd6 {[%clk 0:01:01]} 19. Nd3 {[%clk 0:00:36]}  b5 {[%clk 0:00:56]} 20. Qf3 {[%clk 0:00:36]}  Rh5 {[%clk 0:00:52]} 21. Rhe1 {[%clk 0:00:36]}  Rf5 {[%clk 0:00:52]} 22. Qe2 {[%clk 0:00:36]}  Rh5 {[%clk 0:00:48]} 23. f4 {[%clk 0:00:34]}  a5 {[%clk 0:00:45]} 24. Qe4 {[%clk 0:00:33]}  a4 {[%clk 0:00:44]} 25. a3 {[%clk 0:00:32]}  Bxa3 {[%clk 0:00:43]} 26. Qf3 {[%clk 0:00:21]}  Bd6 {[%clk 0:00:43]} 27. Nf2 {[%clk 0:00:20]}  b4 {[%clk 0:00:33]} 28. Ne4 {[%clk 0:00:21]}  Nb6 {[%clk 0:00:26]} 29. Qd3 {[%clk 0:00:21]}  Ra5 {[%clk 0:00:25]} 30. Bd2 {[%clk 0:00:20]}  a3 {[%clk 0:00:21]} 31. b3 {[%clk 0:00:20]}  a2+ {[%clk 0:00:21]} 32. Ka1 {[%clk 0:00:21]}  Be7 {[%clk 0:00:16]} 33. Re2 {[%clk 0:00:21]}  Nd5 {[%clk 0:00:17]} 34. Qf3 {[%clk 0:00:20]}  Nf6 {[%clk 0:00:12]} 35. Nf2 {[%clk 0:00:20]}  Rxd4 {[%clk 0:00:11]} 36. Ree1 {[%clk 0:00:20]}  Rad5 {[%clk 0:00:07]} 37. Be3 {[%clk 0:00:20]}  Rxd1+ {[%clk 0:00:07]} 38. Rxd1 {[%clk 0:00:21]}  Rxd1+ {[%clk 0:00:07]} 39. Qxd1 {[%clk 0:00:21]}  Nd5 {[%clk 0:00:06]} 40. Bd4 {[%clk 0:00:22]}  Bf6 {[%clk 0:00:03]} 41. Bxf6 {[%clk 0:00:22]}  gxf6 {[%clk 0:00:04]} 42. Ne4 {[%clk 0:00:22]}  f5 {[%clk 0:00:03]} 43. Nc5 {[%clk 0:00:23]}  Qa7 {[%clk 0:00:03]} 44. Nd3 {[%clk 0:00:23]}  Qd4+ {[%clk 0:00:04]} 45. Kxa2 {[%clk 0:00:24]}  Nc3+ {[%clk 0:00:04]} 46. Kb2 {[%clk 0:00:24]}  Nxd1+ {[%clk 0:00:05]} 47. Kc1 {[%clk 0:00:25]}  Ne3 {[%clk 0:00:05]} 48. Kd2 {[%clk 0:00:26]}  Nd5 {[%clk 0:00:05]} 49. Ke2 {[%clk 0:00:26]}  Qe3+ {[%clk 0:00:05]} 50. Kd1 {[%clk 0:00:27]}  Nc3# {[%clk 0:00:06]} 0-1


[Site "https://www.chess.com"]